bitfinex/quotes_SOLUSD_20250624
["timestamp","ask_amount","ask_price","bid_price","bid_amount"]
[1750800028193,11.61894112,144.8,144.75,99.80614036]
[1750800028421,5.16883507,144.79,144.75,95.60844691]
[1750800028603,11.61894112,144.8,144.75,95.60844691]
[1750800028903,5.16912299,144.79,144.75,95.60844691]
[1750800029221,11.61894112,144.8,144.75,95.60844691]
[1750800029411,5.16912992,144.79,144.75,95.60844691]
[1750800029593,11.61894112,144.8,144.75,95.60844691]
[1750800029793,5.16928029,144.79,144.75,95.60844691]
[1750800029994,11.61894112,144.8,144.75,95.60844691]
[1750800030302,5.16923278,144.79,144.75,95.60844691]
[1750800030502,11.61894112,144.8,144.75,95.60844691]
[1750800030721,5.16940969,144.79,144.75,95.60844691]
[1750800030906,11.61894112,144.8,144.75,95.60844691]
[1750800031110,5.16943961,144.79,144.75,95.60844691]
[1750800031424,11.61894112,144.8,144.75,95.60844691]
[1750800031609,5.16955331,144.79,144.75,99.80614036]
[1750800031812,7.42124767,144.8,144.75,99.80614036]
[1750800032007,5.16955244,144.79,144.75,95.60844691]
[1750800032215,6.04,144.8,144.76,4.19769345]
[1750800032929,6.04,144.8,144.77,6.90750846]
[1750800033101,6.04,144.8,144.77,95.60750846]
[1750800035214,4.19769345,144.81,144.77,95.60750846]
[1750800035409,5.16797101,144.8,144.77,95.60750846]
[1750800035610,4.19769345,144.81,144.77,95.60750846]
[1750800035919,5.16800489,144.8,144.77,95.60750846]
[1750800036120,7.4209781,144.83,144.77,99.80520191]
[1750800036428,5.16771137,144.82,144.78,4.19769345]
[1750800036630,5.16771137,144.81,144.78,4.19769345]
[1750800036829,11.61867155,144.83,144.78,4.19769345]
[1750800037123,5.16750249,144.82,144.78,4.19769345]
[1750800037311,5.16750249,144.81,144.78,11.10461304]
[1750800037512,11.61867155,144.83,144.78,11.10461304]
[1750800037811,5.16698585,144.82,144.78,11.10461304]
[1750800037998,5.16698585,144.81,144.78,11.10461304]
[1750800038194,11.61867155,144.83,144.78,11.10461304]
[1750800038399,5.16656703,144.82,144.78,11.10461304]
[1750800038598,5.16656703,144.81,144.78,11.10461304]
[1750800038816,11.61867155,144.83,144.78,11.10461304]
[1750800039014,5.16659441,144.82,144.78,11.10461304]
[1750800039197,5.16659441,144.81,144.78,6.90691959]
[1750800039400,4.19769345,144.82,144.78,6.90691959]
[1750800039626,5.16625814,144.81,144.78,6.90691959]
[1750800039805,11.61867155,144.83,144.78,12.65751304]
[1750800040128,5.16625862,144.82,144.78,12.65751304]
[1750800040304,5.16625862,144.81,144.78,12.65751304]
[1750800040505,11.61867155,144.83,144.78,12.65751304]
[1750800040707,5.16601106,144.82,144.78,12.65751304]
[1750800041033,5.16601106,144.81,144.78,101.35751304]
[1750800041325,10.23769345,144.83,144.78,101.35751304]
[1750800041541,6.04,144.83,144.8,4.19769345]
[1750800041698,6.04,144.83,144.8,92.89769345]
[1750800042596,6.04,144.83,144.8,99.80347057]
[1750800043011,6.04,144.83,144.8,88.7]
[1750800048727,5.57854117,144.84,144.8,88.7]
[1750800049432,5.57854117,144.84,144.8,92.89769345]
[1750800050124,1.38084772,144.84,144.8,92.89769345]
[1750800050337,5.57843214,144.85,144.8,92.89769345]
[1750800050511,5.15986262,144.84,144.8,92.89769345]
[1750800050711,5.57843214,144.85,144.8,92.89769345]
[1750800051017,5.15986262,144.84,144.8,92.89769345]
[1750800051328,5.57843214,144.85,144.8,92.89769345]
[1750800051517,5.15984962,144.84,144.8,88.7]
[1750800051714,4.19769345,144.82,144.8,88.7]
[1750800051919,4.19769345,144.81,144.78,88.7]
[1750800052123,4.83258542,144.85,144.78,88.7]
[1750800052124,4.19769345,144.8,144.78,88.7]
[1750800052336,5.57895715,144.8,144.78,88.7]
[1750800055631,4.19769345,144.79,144.78,88.7]
[1750800055935,9.35967325,144.79,144.74,116.3514]
[1750800056136,4.19769345,144.78,144.74,116.3514]
[1750800056811,5.57917826,144.78,144.74,116.3514]
[1750800058432,4.19769345,144.77,144.74,90.3514]
[1750800058637,4.19769345,144.77,144.74,88.7]
[1750800060216,9.49323442,144.8,144.74,88.7]
[1750800060217,5.57929057,144.76,144.74,88.7]
[1750800061645,4.19769345,144.75,144.71,1.5841]
[1750800061826,4.19769345,144.74,144.71,1.5841]
[1750800063626,5.57952735,144.74,144.71,1.5841]
[1750800064423,1.3818339,144.74,144.71,1.5841]
[1750800066226,3.45399281,144.76,144.72,4.19769345]
[1750800066227,5.57931466,144.76,144.72,4.19769345]
[1750800066433,1.38162121,144.76,144.72,4.19769345]
[1750800067829,1.38162121,144.76,144.72,92.89769345]
[1750800068029,5.57931466,144.76,144.72,92.89769345]
[1750800069351,5.57924141,144.77,144.72,99.80752568]
[1750800082065,1.38154796,144.77,144.73,4.19769345]
[1750800082361,1.38144968,144.78,144.74,4.19769345]
[1750800082565,1.38144968,144.78,144.74,92.89769345]
[1750800082750,5.57903298,144.79,144.74,92.89769345]
[1750800083147,1.38133953,144.79,144.75,4.19769345]
[1750800083359,5.57903298,144.79,144.75,4.19769345]
[1750800084065,5.57903298,144.79,144.75,11.10614077]
[1750800085153,11.61895164,144.8,144.75,99.80614077]
[1750800087184,7.42125819,144.8,144.76,11.10548812]
[1750800087470,7.42125819,144.8,144.76,4.19769345]
[1750800088168,7.42125819,144.8,144.76,11.10565552]
[1750800088464,7.42125819,144.8,144.76,99.80565552]
[1750800090148,6.04,144.8,144.76,99.80565552]
[1750800091065,7.42121786,144.8,144.76,99.80565552]
[1750800093242,12.58183995,144.8,144.76,99.80565552]
[1750800094665,11.20062209,144.8,144.76,99.80565552]
[1750800094879,11.90679345,144.83,144.78,4.19769345]
[1750800095173,5.1576307,144.82,144.78,92.89769345]
[1750800095348,5.1576307,144.81,144.78,92.89769345]
[1750800095672,5.15934166,144.82,144.78,92.89769345]
[1750800096371,5.57856474,144.84,144.79,4.19769345]
[1750800096568,5.16013444,144.83,144.79,4.19769345]
[1750800096779,5.57856474,144.84,144.79,4.19769345]
[1750800096958,5.16003628,144.83,144.79,4.19769345]
[1750800097154,5.15883955,144.83,144.79,4.19769345]
[1750800097360,5.15883955,144.83,144.79,11.10408594]
[1750800097752,5.57856474,144.84,144.79,11.10408594]
[1750800097987,5.15932549,144.83,144.79,11.10408594]
[1750800098275,5.15816874,144.83,144.79,11.10408594]
[1750800099479,5.15816874,144.83,144.8,4.19769345]
[1750800100174,5.15816874,144.84,144.8,4.19769345]
[1750800100485,5.15816874,144.83,144.8,4.19769345]
[1750800100665,5.15816874,144.84,144.8,11.10360702]
[1750800101055,5.15816874,144.84,144.81,4.19769345]
[1750800101374,11.17816874,144.85,144.82,4.19769345]
[1750800101677,6.02,144.85,144.82,4.19769345]
[1750800101889,26.86060924,144.86,144.83,30.19769345]
[1750800102093,9.35586219,144.89,144.84,4.19769345]
[1750800102895,1.38046309,144.88,144.84,4.19769345]
[1750800104486,1.38046309,144.88,144.84,11.10183998]
[1750800106290,5.57808911,144.89,144.84,11.10183998]
[1750800107572,5.57799317,144.9,144.85,4.19769345]
[1750800108594,11.59793036,144.91,144.86,4.19769345]
[1750800108769,11.59793036,144.91,144.86,92.89769345]
[1750800111690,11.59793036,144.91,144.86,99.8007433]
[1750800111893,4.19769345,144.89,144.86,88.7]
[1750800113082,5.5781011,144.89,144.86,88.7]
[1750800119998,5.57795569,144.9,144.86,88.7]
[1750800122090,6.02,144.91,144.86,99.80087461]
[1750800122091,11.59790579,144.91,144.86,99.80087461]
[1750800123985,11.59790579,144.91,144.86,11.10087461]
[1750800124489,7.40021234,144.91,144.86,11.10087461]
[1750800124806,6.02,144.91,144.87,4.19769345]
[1750800125507,7.4001796,144.91,144.87,4.19769345]
[1750800125909,6.02,144.91,144.87,4.19769345]
[1750800126900,6.02,144.91,144.87,11.10015411]
[1750800129010,6.02,144.91,144.88,4.19769345]
[1750800129185,6.02,144.91,144.87,6.90246066]
[1750800129186,6.02,144.91,144.89,4.19769345]
[1750800129486,6.02,144.91,144.89,92.89769345]
[1750800130412,1.3799212,144.94,144.89,4.19769345]
[1750800131713,1.3799212,144.94,144.89,11.09911368]
[1750800132217,5.57761465,144.94,144.89,11.09911368]
[1750800132400,5.5775226,144.95,144.9,4.19769345]
[1750800132590,5.12546536,144.97,144.91,5.80849345]
[1750800132795,4.19769345,144.97,144.92,4.19769345]
[1750800134201,1.37964154,144.97,144.92,13.44384528]
[1750800134401,1.37964154,144.97,144.93,6.54358009]
[1750800134591,7.37951611,144.98,144.94,6.54358009]
[1750800134988,6.0,144.98,144.94,6.54358009]
[1750800135993,7.37950391,144.98,144.94,6.54358009]
[1750800138793,7.37950391,144.98,144.94,95.24358009]
[1750800140422,6.54358009,144.97,144.94,88.7]
[1750800140796,13.923084,144.98,144.94,88.7]
[1750800141417,7.37950391,144.98,144.94,88.7]
[1750800141597,13.923084,144.98,144.94,88.7]
[1750800142517,6.54358009,144.97,144.94,88.7]
[1750800143223,19.05144561,144.98,144.94,88.7]
[1750800143924,13.923084,144.98,144.94,88.7]
[1750800145112,6.54358009,144.97,144.94,88.7]
[1750800146820,1.37969094,144.96,144.94,88.7]
[1750800149021,1.37959577,144.97,144.94,88.7]
[1750800153432,1.37959577,144.97,144.94,95.24358009]
[1750800155937,7.37954242,144.98,144.95,6.54358009]
[1750800156131,7.37954242,144.98,144.95,95.24358009]
[1750800156317,7.37954242,144.98,144.95,92.88618357]
[1750800157012,6.0,144.98,144.95,92.88618357]
[1750800158229,6.0,144.98,144.95,88.7]
[1750800158439,6.0,144.98,144.95,92.88618357]
[1750800160237,7.37954744,144.98,144.95,92.88618357]
[1750800160458,7.37954744,144.98,144.95,88.7]
[1750800164226,7.37954744,144.98,144.94,4.18618357]
[1750800164227,4.18618357,144.96,144.91,1.6108]
[1750800164448,4.18618357,144.93,144.89,6.1807]
[1750800165019,4.18618357,144.93,144.88,4.18618357]
[1750800166351,6.54748695,144.93,144.88,6.54748695]
[1750800166652,1.38007176,144.92,144.88,6.54748695]
[1750800174230,1.38007176,144.92,144.88,95.24748695]
[1750800179761,7.92755871,144.92,144.88,88.7]
[1750800180532,6.54748695,144.91,144.88,88.7]
[1750800181956,7.92774564,144.91,144.88,88.7]
[1750800182160,1.38025869,144.91,144.88,88.7]
[1750800184647,13.08123,144.92,144.88,88.7]
[1750800184847,7.92755871,144.92,144.88,88.7]
[1750800185048,13.08123,144.92,144.88,88.7]
[1750800185245,7.92755871,144.92,144.88,88.7]
[1750800185432,13.08123,144.92,144.88,88.7]
[1750800185636,7.92755871,144.92,144.88,88.7]
[1750800185845,13.08123,144.92,144.88,88.7]
[1750800186054,7.92755871,144.92,144.88,88.7]
[1750800186256,13.08123,144.92,144.88,88.7]
[1750800186436,7.92755871,144.92,144.88,88.7]
[1750800187567,13.08123,144.92,144.88,88.7]
[1750800187747,7.92755871,144.92,144.88,88.7]
[1750800188155,1.38007176,144.92,144.88,95.24748695]
[1750800188343,1.38007176,144.92,144.88,92.89033037]
[1750800189373,5.57040213,144.92,144.88,88.7]
[1750800191482,5.57040213,144.92,144.87,6.90241609]
[1750800191483,4.19033037,144.91,144.86,4.19033037]
[1750800192369,1.38026224,144.9,144.86,4.19033037]
[1750800193774,1.38026224,144.9,144.85,14.46236159]
[1750800194962,1.38026224,144.9,144.85,7.55892352]
[1750800195171,5.57059261,144.9,144.84,37.09436326]
[1750800196189,5.57059261,144.9,144.84,40.46916834]
[1750800196351,4.19033037,144.89,144.84,3.37480508]
[1750800196547,1.38026224,144.9,144.83,38.71922712]
[1750800196548,4.19033037,144.88,144.83,38.71922712]
[1750800197569,1.38054807,144.87,144.83,26.0]
[1750800197753,5.57087844,144.87,144.83,26.0]
[1750800200178,4.19033037,144.86,144.79,20.16632203]
[1750800200471,4.19033037,144.84,144.8,26.0]
[1750800200674,4.19033037,144.85,144.8,30.19033037]
[1750800201358,5.57116246,144.85,144.8,30.19033037]
[1750800201563,5.57116246,144.85,144.8,37.09617581]
[1750800203462,5.57116246,144.85,144.8,40.55614282]
[1750800204653,5.57116246,144.85,144.8,37.09617581]
[1750800206680,5.57116246,144.85,144.8,125.79617581]
[1750800209072,5.57116246,144.85,144.8,121.60584544]
[1750800209396,5.57116246,144.85,144.8,125.79617581]
[1750800209678,5.57116246,144.85,144.8,118.89033037]
[1750800210457,4.19033037,144.84,144.8,88.7]
[1750800212582,1.38092936,144.83,144.8,88.7]
[1750800215988,5.57110829,144.85,144.8,92.89033037]
[1750800216366,5.57110829,144.85,144.8,99.79632084]
[1750800217583,1.38077792,144.85,144.81,4.19033037]
[1750800217782,7.5975,144.86,144.82,4.19033037]
[1750800219177,8.97815056,144.86,144.82,4.19033037]
[1750800221478,8.97815056,144.86,144.82,92.89033037]
[1750800226283,13.16848093,144.86,144.82,92.89033037]
[1750800227314,5.15068106,144.88,144.84,11.09450048]
[1750800227495,9.34101143,144.89,144.84,11.09450048]
[1750800228006,6.53108145,144.89,144.85,4.19033037]
[1750800228197,1.38040039,144.89,144.85,4.19033037]
[1750800228905,1.38040039,144.89,144.84,6.90417011]
[1750800229094,1.38040039,144.89,144.85,4.19033037]
[1750800229588,5.57073076,144.89,144.85,4.19033037]
[1750800230422,1.38040039,144.89,144.85,11.09399747]
[1750800231489,9.34101143,144.9,144.85,11.09399747]
[1750800231490,5.15068106,144.9,144.87,4.19033037]
[1750800231689,11.5505638,144.91,144.87,4.19033037]
[1750800232198,5.15068106,144.9,144.85,6.9036671]
[1750800232405,11.5505638,144.91,144.87,4.19033037]
[1750800232819,16.70124486,144.91,144.87,4.19033037]
[1750800233020,5.15082919,144.9,144.87,4.19033037]
[1750800235715,5.15082919,144.9,144.87,11.09303416]
[1750800235920,5.15082919,144.9,144.84,26.0]
[1750800236098,5.15082919,144.9,144.87,4.19033037]
[1750800236409,7.36023343,144.91,144.87,92.89033037]
[1750800236612,5.15575806,144.9,144.87,92.89033037]
[1750800239590,7.36023343,144.91,144.87,92.89033037]
[1750800239909,5.15708296,144.9,144.88,4.19033037]
[1750800240118,5.98,144.91,144.88,4.19033037]
[1750800240325,5.15722411,144.92,144.9,11.09161857]
[1750800240491,1.37992251,144.94,144.9,11.09161857]
[1750800240690,5.1569815,144.93,144.9,11.09161857]
[1750800240904,1.37992251,144.94,144.9,11.09161857]
[1750800241094,5.156867,144.93,144.9,11.09161857]
[1750800241300,1.37992251,144.94,144.9,11.09161857]
[1750800241510,5.15564093,144.93,144.9,11.09161857]
[1750800241709,1.37992251,144.94,144.9,11.09161857]
[1750800242011,5.15564141,144.93,144.9,11.09161857]
[1750800242215,1.37992251,144.94,144.9,11.09161857]
[1750800242410,5.15402242,144.93,144.9,11.09161857]
[1750800242601,1.37992251,144.94,144.9,11.09161857]
[1750800242803,5.15402242,144.93,144.9,11.09161857]
[1750800243121,5.15235439,144.93,144.9,11.09161857]
[1750800243427,5.15235439,144.93,144.89,4.19033037]
[1750800244315,5.15235439,144.93,144.89,11.09177762]
[1750800246119,5.57025288,144.94,144.89,11.09177762]
[1750800246322,10.72260727,144.94,144.89,11.09177762]
[1750800246498,5.57025288,144.94,144.89,11.09177762]
[1750800246822,10.72260727,144.94,144.89,11.09177762]
[1750800247014,5.57025288,144.94,144.89,11.09177762]
[1750800247311,10.72260727,144.94,144.89,11.09177762]
[1750800247514,5.57025288,144.94,144.89,11.09177762]
[1750800247713,10.72260727,144.94,144.89,11.09177762]
[1750800247920,5.57025288,144.94,144.89,11.09177762]
[1750800248144,10.72260727,144.94,144.89,11.09177762]
[1750800248325,5.57025288,144.94,144.89,11.09177762]
[1750800248504,10.72260727,144.94,144.89,11.09177762]
[1750800248703,5.57025288,144.94,144.89,11.09177762]
[1750800249023,6.5322769,144.94,144.9,4.19033037]
[1750800249322,1.37992251,144.94,144.9,4.19033037]
[1750800250928,1.37992251,144.94,144.9,11.09156767]
[1750800251096,1.37992251,144.94,144.9,99.79156767]
[1750800251719,5.57015758,144.95,144.9,99.79156767]
[1750800251941,6.53208666,144.96,144.91,4.19033037]
[1750800252147,6.53208666,144.96,144.92,4.19033037]
[1750800252715,5.15235439,144.96,144.93,4.19033037]
[1750800253041,11.13235439,144.97,144.94,4.19033037]
[1750800253215,5.98,144.97,144.94,88.7]
[1750800253932,7.35960784,144.97,144.94,88.7]
[1750800255326,5.98,144.97,144.94,99.78967882]
[1750800256441,5.98,144.97,144.94,92.89033037]
[1750800258039,5.98,144.97,144.94,99.78955885]
[1750800258937,5.98,144.97,144.94,92.89033037]
[1750800260460,7.35962077,144.97,144.94,88.7]
[1750800263445,4.19033037,144.95,144.9,30.19033037]
[1750800264435,1.37988133,144.94,144.9,30.19033037]
[1750800268845,1.37988133,144.94,144.9,118.89033037]
[1750800269429,5.5702117,144.94,144.9,4.19033037]
[1750800271155,5.5701165,144.95,144.9,4.19033037]
[1750800272353,10.72247089,144.95,144.9,4.19033037]
[1750800272556,5.5701165,144.95,144.9,4.19033037]
[1750800272759,10.72247089,144.95,144.9,4.19033037]
[1750800272934,5.5701165,144.95,144.9,4.19033037]
[1750800273136,10.72247089,144.95,144.9,4.19033037]
[1750800273335,5.5701165,144.95,144.9,4.19033037]
[1750800273635,10.72247089,144.95,144.9,4.19033037]
[1750800273836,5.5701165,144.95,144.9,4.19033037]
[1750800274155,10.72247089,144.95,144.9,4.19033037]
[1750800274335,5.5701165,144.95,144.9,4.19033037]
[1750800274534,10.72247089,144.95,144.9,4.19033037]
[1750800274737,5.5701165,144.95,144.9,92.89033037]
[1750800275047,10.72247089,144.95,144.9,92.89033037]
[1750800275243,5.5701165,144.95,144.9,88.7]
[1750800275541,10.72247089,144.95,144.9,92.89033037]
[1750800275842,5.5701165,144.95,144.9,92.89033037]
[1750800276056,10.72247089,144.95,144.9,92.89033037]
[1750800276355,5.5701165,144.95,144.9,92.89033037]
[1750800277055,5.5701165,144.95,144.9,88.7]
[1750800277243,9.3436466,144.94,144.9,88.7]
[1750800277443,4.19033037,144.94,144.9,88.7]
[1750800277757,5.1532346,144.94,144.9,92.89033037]
[1750800278058,5.5701165,144.95,144.9,92.89033037]
[1750800278354,5.15433222,144.94,144.9,92.89033037]
[1750800278657,5.5701165,144.95,144.9,92.89033037]
[1750800278850,1.37997654,144.93,144.9,92.89033037]
[1750800279841,1.37988133,144.94,144.9,92.89033037]
[1750800281659,6.5384261,144.93,144.9,92.89033037]
[1750800281859,1.37999957,144.93,144.9,92.89033037]
[1750800283369,1.37999957,144.93,144.9,88.7]
[1750800283658,6.54145756,144.92,144.9,88.7]
[1750800283962,1.38008988,144.92,144.9,88.7]
[1750800285978,4.19033037,144.92,144.9,88.7]
[1750800286138,5.57030691,144.93,144.9,88.7]
[1750800286338,5.16292818,144.92,144.9,88.7]
[1750800286675,5.57030691,144.93,144.9,88.7]
[1750800286860,5.16292818,144.92,144.9,88.7]
[1750800287066,5.57030691,144.93,144.9,88.7]
[1750800287264,1.380167,144.91,144.9,88.7]
[1750800287455,1.380167,144.91,144.88,92.89033037]
[1750800288249,1.38007176,144.92,144.88,92.89033037]
[1750800288449,5.16267841,144.91,144.88,92.89033037]
[1750800288642,1.38007176,144.92,144.88,92.89033037]
[1750800300360,6.41045201,144.96,144.88,6.90200364]
[1750800300567,4.19033037,144.92,144.85,1.5966]
[1750800300873,11.12228404,144.91,144.82,6.6195]
[1750800301068,4.19033037,144.88,144.81,1.6365]
[1750800301319,4.19033037,144.85,144.79,6.90649174]
[1750800301594,4.19033037,144.83,144.78,1.6066]
[1750800301813,5.96,144.85,144.79,4.19033037]
[1750800301964,9.35026643,144.84,144.79,4.19033037]
[1750800302160,4.19033037,144.84,144.79,4.19033037]
[1750800302554,9.34506073,144.84,144.79,4.19033037]
[1750800303058,6.53556818,144.84,144.8,4.19033037]
[1750800303259,3.4515178,144.87,144.83,4.19033037]
[1750800303260,1.38066494,144.86,144.83,4.19033037]
[1750800303488,6.5353953,144.86,144.83,4.19033037]
[1750800303681,6.53530014,144.87,144.83,4.19033037]
[1750800304055,6.53530014,144.87,144.82,4.19033037]
[1750800304259,1.38056978,144.87,144.82,4.19033037]
[1750800304681,1.38056978,144.87,144.83,4.19033037]
[1750800305503,5.57090015,144.87,144.82,4.19033037]
[1750800306406,7.93321717,144.87,144.82,13.45774182]
[1750800306709,1.38056978,144.87,144.82,13.45774182]
[1750800306905,7.71505734,144.88,144.83,6.55264739]
[1750800308113,14.26770473,144.88,144.83,6.55264739]
[1750800310504,6.55264739,144.87,144.82,6.55264739]
[1750800311620,6.55264739,144.86,144.81,6.55264739]
[1750800312392,1.38073869,144.85,144.81,6.55264739]
[1750800313911,6.55264739,144.85,144.8,39.45856356]
[1750800314110,6.55264739,144.85,144.8,128.15856356]
[1750800314419,6.55264739,144.86,144.81,6.55264739]
[1750800314996,7.93338605,144.86,144.81,6.55264739]
[1750800315194,12.88724739,144.88,144.83,6.55264739]
[1750800315501,12.88724739,144.88,144.83,95.25264739]
[1750800316002,12.88724739,144.88,144.83,88.7]
[1750800316205,7.93320112,144.87,144.83,88.7]
[1750800317511,1.38048687,144.88,144.83,102.15726866]
[1750800317711,1.38048687,144.88,144.84,6.55264739]
[1750800319103,1.38048687,144.88,144.84,95.25264739]
[1750800320620,7.93313426,144.88,144.84,88.7]
[1750800328232,5.57373079,144.88,144.84,88.7]
[1750800331725,1.38048687,144.88,144.84,88.7]
[1750800332213,5.57373079,144.88,144.84,88.7]
[1750800334105,4.19324392,144.87,144.84,88.7]
[1750800334718,1.38064337,144.86,144.84,88.7]
[1750800336429,5.57388729,144.86,144.84,88.7]
[1750800336931,5.57388729,144.86,144.81,92.89324392]
[1750800338636,5.57388729,144.86,144.81,88.7]
[1750800338807,4.19324392,144.85,144.81,88.7]
[1750800339812,1.38083402,144.84,144.81,88.7]
[1750800347639,5.16975443,144.83,144.81,88.7]
[1750800347941,1.38083402,144.84,144.81,88.7]
[1750800348235,5.16975443,144.83,144.81,88.7]
[1750800348433,1.38083402,144.84,144.81,88.7]
[1750800348644,5.1702639,144.83,144.81,88.7]
[1750800348834,1.38083402,144.84,144.81,88.7]
[1750800349136,5.17023493,144.83,144.81,88.7]
[1750800349314,1.38083402,144.84,144.81,88.7]
[1750800349634,5.16986392,144.83,144.81,88.7]
[1750800349941,1.38083402,144.84,144.81,88.7]
[1750800350115,5.16989337,144.83,144.81,88.7]
[1750800350316,1.38083402,144.84,144.81,88.7]
[1750800350512,5.16951465,144.83,144.81,88.7]
[1750800350833,1.38077251,144.85,144.81,92.89324392]
[1750800351053,5.16937292,144.84,144.81,92.89324392]
[1750800351337,1.38077251,144.85,144.81,92.89324392]
[1750800351533,5.16925884,144.84,144.82,4.19324392]
[1750800351729,1.38068971,144.86,144.82,4.19324392]
[1750800351927,5.16925884,144.85,144.82,4.19324392]
[1750800352125,5.16925884,144.84,144.82,4.19324392]
[1750800352319,1.38068971,144.86,144.82,4.19324392]
[1750800352523,5.16915422,144.85,144.82,4.19324392]
[1750800352723,5.16915422,144.84,144.82,4.19324392]
[1750800353026,1.38068971,144.86,144.82,4.19324392]
[1750800353340,5.16915422,144.85,144.82,4.19324392]
[1750800353542,5.16915422,144.84,144.82,11.09833795]
[1750800353748,1.38068971,144.86,144.82,4.19324392]
[1750800353931,5.16898364,144.85,144.82,4.19324392]
[1750800354122,1.38068971,144.86,144.82,4.19324392]
[1750800354318,5.16893153,144.85,144.83,4.19324392]
[1750800354524,1.38056889,144.87,144.83,92.89324392]
[1750800354747,5.16850724,144.86,144.83,99.79787645]
[1750800354938,1.38056889,144.87,144.83,99.79787645]
[1750800355130,5.16850627,144.86,144.83,99.79787645]
[1750800355325,1.38056889,144.87,144.83,92.89324392]
[1750800355532,5.16833629,144.86,144.83,92.89324392]
[1750800355720,1.38056889,144.87,144.83,92.89324392]
[1750800355921,5.16833629,144.86,144.83,92.89324392]
[1750800356128,1.38056889,144.87,144.83,99.79787315]
[1750800356317,5.16820812,144.86,144.83,99.79787315]
[1750800356540,1.38056889,144.87,144.83,99.79787315]
[1750800356842,5.16820812,144.86,144.84,4.19324392]
[1750800357048,1.38049264,144.88,144.84,92.89324392]
[1750800357347,5.16803943,144.87,144.84,92.89324392]
[1750800357646,1.38049264,144.88,144.84,92.89324392]
[1750800357855,5.16777628,144.87,144.84,99.79720792]
[1750800358144,5.96,144.89,144.85,4.19324392]
[1750800358341,5.16676607,144.88,144.85,4.19324392]
[1750800358645,5.16676607,144.87,144.85,4.19324392]
[1750800358849,5.96,144.89,144.85,4.19324392]
[1750800359031,5.16677318,144.88,144.85,4.19324392]
[1750800359226,5.96,144.89,144.85,4.19324392]
[1750800359548,5.16606364,144.88,144.85,4.19324392]
[1750800359759,5.96,144.89,144.85,11.09662602]
[1750800359921,5.16605751,144.88,144.85,11.09662602]
[1750800360121,5.96,144.89,144.85,11.09662602]
[1750800360322,5.1659066,144.88,144.85,6.9033821]
[1750800360518,5.1651782,144.91,144.87,4.19324392]
[1750800362341,5.57326206,144.93,144.88,11.09548196]
[1750800362540,5.15842309,144.92,144.89,4.19324392]
[1750800362739,13.14395839,144.94,144.89,4.19324392]
[1750800362941,5.15842213,144.93,144.89,4.19324392]
[1750800363136,5.15842213,144.92,144.89,4.19324392]
[1750800363343,13.14395839,144.94,144.89,4.19324392]
[1750800363629,5.15602239,144.93,144.89,4.19324392]
[1750800363826,5.15602239,144.92,144.89,11.09498662]
[1750800364048,13.14395839,144.94,144.89,11.09498662]
[1750800364260,5.1541232,144.93,144.89,11.09498662]
[1750800364452,5.1541232,144.92,144.89,4.19324392]
[1750800364659,5.1541232,144.93,144.89,4.19324392]
[1750800364860,5.1541232,144.92,144.89,4.19324392]
[1750800365035,5.1541232,144.93,144.9,4.19324392]
[1750800365235,5.15173731,144.93,144.9,4.19324392]
[1750800365459,5.15173731,144.93,144.91,4.19324392]
[1750800365660,6.0,144.94,144.91,92.89324392]
[1750800365863,6.0,144.94,144.91,99.79378989]
[1750800366052,5.15083447,144.95,144.92,4.19324392]
[1750800366253,5.57287586,144.97,144.92,4.19324392]
[1750800366254,5.14722826,144.96,144.92,4.19324392]
[1750800366652,5.14722826,144.96,144.94,4.19324392]
[1750800366843,5.14722826,144.96,144.91,6.90054597]
[1750800366844,5.14722826,144.98,144.95,4.19324392]
[1750800367048,23.4354388,144.99,144.97,4.19324392]
[1750800367258,5.14722826,145.0,144.97,4.19324392]
[1750800367769,6.52646074,145.01,144.97,4.19324392]
[1750800368170,4.19324392,145.02,144.98,4.19324392]
[1750800368171,6.52636388,145.02,144.98,4.19324392]
[1750800368342,1.37913562,145.02,144.98,6.53842874]
[1750800369366,7.91747401,145.03,144.98,13.43586369]
[1750800370050,7.37896675,145.04,145.0,6.53842874]
[1750800371060,6.0,145.04,145.0,6.53842874]
[1750800371566,6.0,145.04,145.0,13.43487812]
[1750800371945,6.0,145.04,145.01,6.53842874]
[1750800372254,6.0,145.04,145.01,95.23842874]
[1750800372652,1.37887091,145.05,145.01,95.23842874]
[1750800372653,7.91720527,145.06,145.01,13.43448336]
[1750800376183,6.53842874,145.06,145.02,6.53842874]
[1750800377060,6.53842874,145.06,145.01,13.43448336]
[1750800377458,7.91707353,145.07,145.02,6.53842874]
[1750800377658,7.91707353,145.07,145.02,8.04332874]
[1750800378477,7.91707353,145.07,145.02,14.93874498]
[1750800379762,6.53842874,145.03,145.02,1.5049]